bitfinex-derivatives/quotes_ETHF0:USTF0_20250626
["timestamp","ask_amount","ask_price","bid_price","bid_amount"]
[1750906624161,0.80165,2493.6,2493.2,1.3638]
[1750906624360,3.2078,2493.8,2493.1,3.2078]
[1750906624555,1.3199,2493.5,2493.1,3.2078]
[1750906624755,0.80176,2493.2,2493.1,3.2078]
[1750906625060,0.80181,2493.1,2492.7,3.2078]
[1750906625263,2.12171,2493.1,2492.7,3.2078]
[1750906625460,0.80177,2493.2,2492.7,3.2078]
[1750906625755,0.80184,2493.0,2492.7,3.2078]
[1750906626355,1.2983,2493.2,2492.7,3.2078]
[1750906626559,0.80188,2492.8,2492.7,3.2078]
[1750906626760,0.80186,2492.9,2492.7,3.2078]
[1750906627065,0.80188,2492.8,2492.7,3.2078]
[1750906627266,0.80188,2492.8,2491.9,4.5289]
[1750906627267,0.80198,2492.5,2491.9,4.5289]
[1750906627460,3.2078,2492.7,2491.9,4.5289]
[1750906627767,0.80205,2492.3,2491.9,4.5289]
[1750906628062,0.80202,2492.4,2491.9,4.5289]
[1750906628261,1.2983,2492.6,2492.2,3.2078]
[1750906628461,0.80185,2492.9,2492.2,4.00988]
[1750906628668,0.80189,2492.8,2492.3,1.3211]
[1750906628970,1.2983,2493.0,2492.6,3.2078]
[1750906629162,0.80192,2492.7,2492.6,3.2078]
[1750906629662,0.80201,2492.5,2492.0,4.6423]
[1750906629863,0.80203,2492.4,2492.0,4.6423]
[1750906630072,0.80205,2492.3,2492.0,4.6423]
[1750906630274,16.81136,2493.3,2492.0,4.6423]
[1750906630275,6.36174844,2494.6,2492.7,3.2078]
[1750906630458,0.80146,2494.2,2493.9,3.2078]
[1750906630658,1.3538,2494.5,2493.9,3.2078]
[1750906630859,3.2078,2494.2,2493.6,3.2078]
[1750906631064,0.80159,2493.8,2493.6,3.2078]
[1750906631264,1.3538,2494.1,2493.6,3.2078]
[1750906631569,2.15528,2494.1,2493.6,3.2078]
[1750906631764,1.3538,2494.1,2493.6,3.2078]
[1750906632164,0.80133,2494.6,2494.0,3.2078]
[1750906632372,1.3767,2494.8,2494.4,3.2078]
[1750906632563,4.5845,2494.5,2493.8,3.2078]
[1750906632870,0.80146,2494.2,2493.8,3.2078]
[1750906633172,46.207,2494.9,2494.1,3.2078]
[1750906633365,0.80128,2494.7,2494.2,3.2078]
[1750906633565,0.80136,2494.5,2494.2,3.2078]
[1750906633766,3.2078,2494.7,2494.2,3.2078]
[1750906634067,0.80132,2494.6,2494.2,3.2078]
[1750906634266,4.00909,2494.7,2494.2,3.2078]
[1750906634682,1.3767,2494.9,2494.2,3.2078]
[1750906634977,0.80139,2494.4,2494.2,3.2078]
[1750906635177,4.5845,2494.9,2493.9,3.2078]
[1750906635474,3.2078,2494.2,2493.6,3.2078]
[1750906635673,0.80158,2493.8,2493.6,3.2078]
[1750906635861,0.80159,2493.7,2493.6,3.2078]
[1750906636264,0.80167,2493.5,2493.3,3.2078]
[1750906636464,0.80174,2493.3,2493.0,3.2078]
[1750906636665,3.2078,2493.4,2493.0,3.2078]
[1750906636964,3.2078,2493.4,2492.7,3.2078]
[1750906637171,1.3051,2493.3,2492.7,4.6239]
[1750906637372,0.80176,2493.2,2492.7,4.6239]
[1750906637672,0.80182,2493.0,2492.7,4.6239]
[1750906637872,1.3051,2493.3,2492.7,4.6239]
[1750906638178,0.80181,2493.1,2492.7,4.6239]
[1750906638475,0.80184,2493.0,2492.7,4.6239]
[1750906638667,1.3051,2493.3,2492.7,4.6239]
[1750906638668,0.8018,2493.1,2492.7,4.6239]
[1750906638975,0.80184,2493.0,2492.7,4.6239]
[1750906639273,3.2078,2493.4,2492.7,4.6239]
[1750906639472,0.80178,2493.2,2492.8,1.3524]
[1750906639669,4.5331,2493.7,2492.8,2.15427]
[1750906639974,0.80175,2493.3,2492.8,1.3524]
[1750906640374,0.80173,2493.3,2492.8,1.3524]
[1750906640673,0.80176,2493.2,2492.8,1.3524]
[1750906640873,0.80173,2493.3,2492.8,1.3524]
[1750906641074,4.5331,2493.7,2492.8,1.3524]
[1750906641275,0.80172,2493.3,2492.8,1.3524]
[1750906641577,0.80173,2493.3,2492.8,1.3524]
[1750906641769,0.80176,2493.2,2492.8,1.3524]
[1750906642187,3.2078,2494.2,2493.1,3.2078]
[1750906642380,16.42927,2494.7,2492.8,6.3524]
[1750906642381,3.2078,2493.5,2492.8,3.2078]
[1750906642681,3.2078,2493.5,2492.9,1.3757]
[1750906642873,4.00947,2493.5,2492.9,1.3757]
[1750906643073,0.8017,2493.4,2492.9,1.3757]
[1750906643270,3.2078,2493.5,2492.9,1.3757]
[1750906643577,0.80171,2493.4,2492.9,1.3757]
[1750906643772,3.2078,2493.5,2492.9,1.3757]
[1750906644079,0.80182,2493.0,2492.8,3.2078]
[1750906644574,0.80179,2493.1,2492.8,3.2078]
[1750906644782,0.80182,2493.0,2492.8,3.2078]
[1750906644970,0.80179,2493.1,2492.8,3.2078]
[1750906645476,0.80182,2493.0,2492.8,3.2078]
[1750906645666,3.2078,2493.2,2492.8,3.2078]
[1750906645868,0.80184,2493.0,2492.8,3.2078]
[1750906646070,3.2078,2493.2,2492.8,3.2078]
[1750906646269,0.80184,2493.0,2492.8,3.2078]
[1750906646480,0.80189,2492.8,2492.5,3.2078]
[1750906646678,1.3925,2493.1,2492.5,3.2078]
[1750906646870,3.2078,2492.9,2492.5,3.2078]
[1750906647066,0.80195,2492.7,2492.5,3.2078]
[1750906647276,3.2078,2492.9,2492.2,3.2078]
[1750906647277,0.80202,2492.4,2492.2,3.2078]
[1750906647778,1.3925,2492.6,2492.2,3.2078]
[1750906647970,3.2078,2492.9,2492.2,3.2078]
[1750906648170,3.2078,2493.0,2492.3,1.3707]
[1750906648373,0.7728,2493.4,2492.8,3.2078]
[1750906648676,0.80194,2492.7,2492.3,1.3707]
[1750906648980,0.80189,2492.8,2492.3,1.3707]
[1750906649482,0.80192,2492.7,2492.3,1.3707]
[1750906649688,0.80189,2492.8,2492.3,1.3707]
[1750906649977,1.3933,2493.3,2492.3,1.3707]
[1750906649978,3.2078,2493.7,2492.6,3.2078]
[1750906650183,0.80176,2493.2,2492.7,1.3707]
[1750906650386,0.80173,2493.3,2492.7,1.3707]
[1750906650577,0.80169,2493.4,2492.9,3.2078]
[1750906650778,0.80169,2493.4,2493.0,1.3251]
[1750906651074,14.041,2493.8,2493.0,1.3251]
[1750906651273,0.80175,2493.3,2493.0,1.3251]
[1750906651478,0.80179,2493.1,2493.0,1.3251]
[1750906651683,0.80179,2493.1,2492.7,1.15725163]
[1750906651884,0.80183,2493.0,2492.8,1.3251]
[1750906652085,0.8018,2493.1,2492.8,1.3251]
[1750906652384,0.80176,2493.2,2492.9,3.2078]
[1750906652583,0.80176,2493.2,2493.0,1.3251]
[1750906653079,0.8018,2493.1,2492.6,1.95918163]
[1750906653382,0.8018,2493.1,2493.0,1.3251]
[1750906653383,0.80179,2493.1,2493.0,1.3251]
[1750906654279,3.2078,2493.5,2493.0,1.3251]
[1750906654480,3.2078,2493.5,2492.8,3.2078]
[1750906654677,1.3685,2493.8,2493.1,3.2078]
[1750906654678,0.80171,2493.4,2493.1,3.2078]
[1750906654887,0.80172,2493.3,2493.2,1.3854]
[1750906655086,0.80175,2493.2,2493.1,3.2078]
[1750906655383,0.80174,2493.3,2493.1,3.2078]
[1750906655583,0.80182,2493.0,2492.9,1.15725163]
[1750906655779,0.80185,2492.9,2492.8,3.2078]
[1750906656083,3.2078,2493.1,2492.5,3.2078]
[1750906656287,1.3682,2493.0,2492.3,1.15725163]
[1750906656582,0.80196,2492.6,2492.2,4.5932]
[1750906656775,0.80193,2492.7,2492.3,3.34049163]
[1750906656979,0.80193,2492.7,2492.5,3.2078]
[1750906657288,0.80195,2492.6,2492.5,3.2078]
[1750906657490,0.80193,2492.7,2492.5,3.2078]
[1750906657687,1.3536,2493.2,2492.5,3.2078]
[1750906657887,0.80183,2493.0,2492.6,2.18314]
[1750906658081,0.80183,2493.0,2492.7,1.3812]
[1750906658390,3.2078,2493.5,2492.8,3.2078]
[1750906658590,0.80178,2493.2,2492.8,4.00967]
[1750906658890,3.2078,2494.3,2493.5,0.80164]
[1750906659081,1.3536,2494.4,2493.7,3.2078]
[1750906659276,0.80151,2494.0,2493.7,3.2078]
[1750906659678,0.80142,2494.3,2493.8,0.80155]
[1750906659884,2.15499,2494.4,2493.9,0.80152]
[1750906660183,0.8014,2494.3,2493.9,0.80152]
[1750906660383,0.8014,2494.3,2494.0,1.3774]
[1750906660583,0.80138,2494.4,2494.0,1.3774]
[1750906660788,4.6462,2494.7,2494.0,1.3774]
[1750906660987,4.6462,2494.7,2493.7,4.00939]
[1750906661189,4.6462,2494.7,2493.8,1.3774]
[1750906661690,4.6462,2494.7,2494.3,3.2078]
[1750906661893,0.80131,2494.6,2494.3,3.2078]
[1750906662094,0.80137,2494.4,2494.3,3.2078]
[1750906662285,4.6462,2494.7,2493.9,3.2078]
[1750906662682,3.15394844,2495.7,2495.0,3.2078]
[1750906662887,15.89994326,2498.0,2495.6,3.2078]
[1750906662888,3.87863682,2497.0,2495.6,3.2078]
[1750906663185,3.2078,2497.0,2496.1,3.2078]
[1750906663391,0.80062,2496.8,2496.1,3.2078]
[1750906663590,0.80057,2496.9,2496.1,4.00862]
[1750906663887,40.8,2496.8,2496.1,3.2078]
[1750906664088,40.8,2496.8,2496.4,3.2078]
[1750906664991,40.8,2496.8,2496.7,3.2078]
[1750906665991,0.80054,2497.0,2496.7,3.2078]
[1750906666290,0.8006,2496.8,2496.7,3.2078]
[1750906666698,0.8006,2496.8,2495.8,9.26627291]
[1750906666699,40.8,2497.1,2496.4,3.2078]
[1750906666891,0.08009,2497.0,2496.4,3.2078]
[1750906667494,0.8007,2496.5,2496.4,3.2078]
[1750906668790,0.80079,2496.2,2496.1,3.2078]
[1750906668992,3.2078,2496.2,2495.5,3.2078]
[1750906669199,1.3418,2496.4,2494.8,3.2078]
[1750906669200,3.2078,2495.6,2494.8,3.2078]
[1750906669496,0.80121,2494.9,2494.8,3.2078]
[1750906669801,40.8,2495.2,2494.8,3.2078]
[1750906670295,3.2078,2495.6,2494.8,3.2078]
[1750906670496,2.30692,2495.6,2494.9,1.4086]
[1750906670692,0.80083,2496.1,2495.5,3.2078]
[1750906670893,0.80083,2496.1,2495.8,3.2078]
[1750906671096,0.80087,2496.0,2495.8,3.2078]
[1750906671294,0.80082,2496.2,2495.8,3.2078]
[1750906671498,0.80088,2496.0,2495.8,3.2078]
[1750906671699,0.80089,2495.9,2495.8,3.2078]
[1750906672000,1.3418,2496.3,2495.8,3.2078]
[1750906672200,13.266,2496.5,2496.1,3.2078]
[1750906672402,0.8008,2496.2,2496.1,3.2078]
[1750906672705,3.2078,2496.2,2495.5,3.2078]
[1750906672899,0.80098,2495.6,2495.5,3.2078]
[1750906673105,0.80107,2495.4,2495.1,3.2078]
[1750906673403,40.8,2495.8,2495.1,3.2078]
[1750906673607,42.237,2495.8,2495.1,3.2078]
[1750906674204,0.80106,2495.4,2495.1,3.2078]
[1750906674505,1.437,2495.8,2495.1,3.2078]
[1750906674902,0.80111,2495.2,2495.1,3.2078]
[1750906675299,0.80121,2494.9,2494.8,3.2078]
[1750906676008,0.80119,2495.0,2494.8,3.2078]
[1750906676206,0.80121,2494.9,2494.8,3.2078]
[1750906678405,0.80133,2494.6,2494.5,3.2078]
[1750906679613,3.2078,2495.0,2494.5,3.2078]
[1750906679808,0.8012,2495.0,2494.8,3.2078]
[1750906680311,0.80121,2494.9,2494.8,3.2078]
[1750906680511,3.2078,2495.4,2494.8,3.2078]
[1750906680706,0.80119,2495.0,2494.8,3.2078]
[1750906681110,0.80116,2495.1,2494.8,3.2078]
[1750906681310,0.80118,2495.0,2494.8,3.2078]
[1750906681506,1.3903,2495.3,2494.8,3.2078]
[1750906681705,0.80108,2495.3,2495.2,3.2078]
[1750906682007,0.80107,2495.4,2495.2,3.2078]
[1750906682405,0.80108,2495.3,2495.2,3.2078]
[1750906683521,0.80106,2495.4,2495.2,3.2078]
[1750906683708,0.80106,2495.4,2495.3,1.385]
[1750906684812,0.80108,2495.3,2495.2,3.2078]
[1750906685012,0.80121,2494.9,2494.8,3.2078]
[1750906686816,0.80136,2494.5,2494.4,3.2078]
[1750906687005,0.80136,2494.5,2493.2,15.46620628]
[1750906687006,0.80161,2493.7,2493.2,4.37615471]
[1750906687209,0.80161,2493.7,2493.3,1.3844]
[1750906687410,14.52735,2494.5,2493.3,1.3844]
[1750906687411,12.524,2494.5,2493.6,3.2078]
[1750906687618,3.2078,2494.8,2494.1,3.2078]
[1750906687913,12.524,2495.0,2494.6,3.2078]
[1750906688116,40.8,2495.0,2494.6,3.2078]
[1750906688317,40.8,2495.0,2494.7,1.3844]
[1750906688519,0.80124,2494.8,2494.7,1.3844]
[1750906688712,41.6012,2495.0,2494.7,1.3844]
[1750906689017,4.859,2495.2,2494.7,1.3844]
[1750906689018,0.80124,2494.8,2494.7,1.3844]
[1750906689519,0.80127,2494.7,2494.6,3.2078]
[1750906692014,3.2078,2495.2,2494.6,8.2078]
[1750906692213,0.80116,2495.1,2494.7,1.4232]
[1750906692423,0.80098,2495.6,2495.0,3.2078]
[1750906692618,0.80102,2495.5,2495.3,3.2078]
[1750906693114,0.80105,2495.4,2495.3,3.2078]
[1750906693316,0.80105,2495.4,2494.7,7.61985566]
[1750906693317,3.2078,2495.4,2494.7,3.2078]
[1750906693508,0.80123,2494.9,2494.7,3.2078]
[1750906693707,0.80121,2495.0,2494.7,3.2078]
[1750906693917,0.80121,2495.0,2494.8,1.394]
[1750906694318,17.1366,2495.5,2494.8,1.394]
[1750906694909,0.80113,2495.2,2494.8,1.394]
[1750906695316,12.524,2495.5,2494.8,1.394]
[1750906695525,0.80121,2494.9,2494.8,1.394]
[1750906695823,0.8012,2495.0,2494.7,3.2078]
[1750906696318,3.2078,2495.3,2494.7,3.2078]
[1750906696718,1.3464,2495.2,2494.7,3.2078]
[1750906697121,0.80118,2495.1,2494.7,3.2078]
[1750906697321,1.3464,2495.2,2494.7,3.2078]
[1750906697522,0.80124,2494.8,2494.7,3.2078]
[1750906698318,3.2078,2495.0,2494.4,4.37615471]
[1750906698521,3.2078,2495.0,2494.4,3.2078]
[1750906698522,0.80134,2494.5,2494.4,3.2078]
[1750906698919,0.80143,2494.2,2494.1,4.5662]
[1750906699226,3.2078,2494.5,2493.8,4.37615471]
[1750906699526,17.0782,2494.9,2494.1,3.2078]
[1750906699730,0.80138,2494.4,2494.1,3.2078]
[1750906699928,0.8014,2494.3,2494.2,1.3717]
[1750906700128,0.80137,2494.4,2494.2,1.3717]
[1750906700628,0.80139,2494.4,2494.2,1.3717]
[1750906700824,0.80134,2494.5,2494.2,1.3717]
[1750906701023,40.8,2494.8,2494.2,1.3717]
[1750906701222,5.2104,2495.5,2494.7,3.2078]
[1750906701529,0.80126,2494.8,2494.7,3.2078]
[1750906702023,2.00319,2494.7,2494.0,1.16835471]
[1750906702214,0.80153,2493.9,2493.8,3.2078]
[1750906702421,12.525,2494.1,2493.2,2.60735471]
[1750906702627,3.2078,2494.0,2493.4,4.6468]
[1750906702826,3.2078,2494.0,2493.4,3.2078]
[1750906702827,0.80166,2493.5,2493.4,3.2078]
[1750906703028,0.80162,2493.7,2493.4,3.2078]
[1750906703225,0.80164,2493.6,2493.4,3.2078]
[1750906703817,45.3126,2494.0,2493.4,3.2078]
[1750906704022,15.7328,2494.1,2493.4,3.2078]
[1750906704222,0.80151,2494.0,2493.7,3.2078]
[1750906704428,12.525,2494.1,2493.7,3.2078]
[1750906704623,12.525,2494.1,2493.8,1.439]
[1750906704820,0.80156,2493.8,2493.3,4.37615471]
[1750906705018,3.2078,2493.9,2493.3,3.2078]
[1750906705221,0.80164,2493.6,2493.3,3.2078]
[1750906705422,1.3515,2493.7,2493.3,3.2078]
[1750906705834,0.80167,2493.5,2493.3,3.2078]
[1750906706029,3.2078,2493.9,2493.3,3.2078]
[1750906706329,0.80156,2493.8,2493.4,1.4283]
[1750906706532,0.80167,2493.5,2493.3,3.2078]
[1750906706724,3.2078,2493.9,2493.3,3.2078]
[1750906707034,0.80161,2493.7,2493.3,3.2078]
[1750906707334,0.80167,2493.5,2493.3,3.2078]
[1750906707627,0.80168,2493.5,2493.3,3.2078]
[1750906708434,1.3515,2493.8,2493.3,3.2078]
[1750906708827,0.80169,2493.4,2493.3,3.2078]
[1750906709130,3.2078,2493.4,2492.7,3.2078]
[1750906709331,1.3374,2493.3,2492.9,3.2078]
[1750906709527,2.13912,2493.3,2492.9,3.2078]
[1750906709726,2.13914,2493.3,2492.9,3.2078]
[1750906710028,1.3374,2493.3,2492.9,3.2078]
[1750906710236,2.13915,2493.3,2492.9,3.2078]
[1750906710431,15.7358,2493.5,2492.9,3.2078]
[1750906710625,16.53747,2493.5,2492.9,4.00965]
[1750906710830,13.32967,2493.5,2493.0,1.3036]
[1750906711534,13.32967,2493.5,2493.2,3.2078]
[1750906711839,12.528,2493.5,2493.2,3.2078]
[1750906712331,0.80181,2493.1,2492.9,3.2078]
[1750906712837,0.80179,2493.1,2492.9,3.2078]
[1750906713130,0.80172,2493.3,2492.9,3.2078]
[1750906713340,42.2203,2493.4,2492.9,3.2078]
[1750906713533,58.57,2493.8,2493.2,3.2078]
[1750906713835,0.8016,2493.7,2493.2,3.2078]
[1750906714034,40.8,2493.7,2493.3,1.3753]
[1750906714226,0.80169,2493.4,2493.2,3.2078]
[1750906714428,3.2078,2493.5,2492.9,3.2078]
[1750906714730,42.80403,2493.7,2492.7,8.85804095]
[1750906714934,0.80178,2493.2,2493.1,3.2078]
[1750906716526,0.80175,2493.2,2493.1,3.2078]
[1750906716730,44.0078,2493.6,2493.1,3.2078]
[1750906717037,93.7227,2493.8,2493.1,3.2078]
[1750906717235,0.80171,2493.4,2493.2,1.3034]
[1750906717941,93.7227,2493.8,2493.2,1.3034]
[1750906717942,0.80172,2493.3,2493.2,1.3034]
[1750906718439,0.80175,2493.2,2493.1,3.2078]
[1750906718835,0.80175,2493.2,2492.8,1.3034]
[1750906718836,3.2078,2493.6,2492.8,4.5112]
[1750906719032,0.8018,2493.1,2492.8,4.5112]
[1750906719433,3.2078,2493.6,2492.8,4.5112]
[1750906719932,0.80181,2493.1,2492.8,4.5112]
[1750906720635,3.2078,2493.6,2492.8,4.5112]
[1750906720835,0.80185,2492.9,2492.8,4.5112]
[1750906721241,1.3882,2493.5,2492.8,4.5112]
[1750906721739,0.80181,2493.1,2492.8,4.5112]
[1750906722040,0.80177,2493.2,2492.8,4.5112]
[1750906722235,3.2078,2493.6,2492.8,10.16144095]
[1750906722236,0.80174,2493.3,2492.8,10.16144095]
[1750906722439,3.2078,2493.6,2492.8,10.16144095]
[1750906722943,0.80176,2493.2,2492.8,10.16144095]
[1750906723144,3.2078,2493.6,2493.1,3.2078]
[1750906723536,1.3852,2493.5,2493.1,3.2078]
[1750906723942,0.80177,2493.2,2493.1,3.2078]
[1750906724146,1.3852,2493.5,2493.1,3.2078]
[1750906724441,0.80175,2493.2,2493.1,3.2078]
[1750906724641,0.80173,2493.3,2493.1,3.2078]
[1750906724844,46.194,2493.8,2493.2,1.3588]
[1750906725045,5.21179,2493.7,2493.1,3.2078]
[1750906725347,0.80175,2493.2,2493.1,3.2078]
[1750906725539,0.80175,2493.2,2492.7,5.65024095]
[1750906725540,0.80174,2493.3,2492.8,3.2078]
[1750906725841,3.14892643,2494.8,2493.4,3.2078]
[1750906726143,3.2078,2495.4,2494.6,3.2078]
[1750906726439,0.8012,2495.0,2494.7,1.339]
[1750906726741,1.3177,2495.3,2494.7,1.339]
[1750906727044,3.2078,2495.1,2494.6,3.2078]
[1750906727246,4.00896,2495.1,2494.6,3.2078]
[1750906727445,4.00896,2495.1,2494.7,1.339]
[1750906728644,0.80118,2495.0,2494.7,1.339]
[1750906728837,3.2078,2496.0,2494.9,3.2078]
[1750906729037,3.2078,2496.0,2495.3,3.2078]
[1750906729246,1.3177,2495.9,2495.3,3.2078]
[1750906729444,0.80096,2495.7,2495.3,3.2078]
[1750906729644,42.1177,2495.9,2495.3,3.2078]
[1750906729944,0.801,2495.6,2495.3,3.2078]
[1750906730142,0.80104,2495.5,2495.3,3.2078]
[1750906730649,3.2078,2495.7,2495.3,3.2078]
[1750906730650,0.80095,2495.7,2495.3,3.2078]
[1750906730850,0.80101,2495.6,2495.3,3.2078]
[1750906731348,0.80103,2495.5,2495.3,3.2078]
[1750906731650,0.801,2495.6,2495.3,3.2078]
[1750906731849,3.2078,2495.8,2495.3,3.2078]
[1750906732148,0.80092,2495.8,2495.4,1.3231]
[1750906732844,12.376,2496.0,2495.4,6.97334095]
[1750906733144,0.80102,2495.5,2495.3,3.2078]
[1750906733344,0.80105,2495.4,2495.3,3.2078]
[1750906733543,0.80103,2495.5,2495.3,3.2078]
[1750906733739,0.80101,2495.6,2495.3,3.2078]
[1750906733939,0.80101,2495.6,2495.4,1.422]
[1750906734249,42.167,2495.9,2495.4,1.422]
[1750906734250,0.80102,2495.5,2495.4,1.422]
[1750906734543,0.80105,2495.4,2495.3,3.2078]
[1750906734944,0.80124,2494.8,2494.4,1.8224]
[1750906735147,3.2078,2495.0,2494.6,3.2078]
[1750906735443,0.80123,2494.9,2494.6,3.2078]
[1750906735648,0.80123,2494.9,2494.7,1.3425]
[1750906736145,3.2078,2495.2,2494.6,3.2078]
[1750906736448,0.80127,2494.7,2494.6,3.2078]
[1750906736944,0.80129,2494.7,2494.3,3.2078]
[1750906737151,0.80131,2494.6,2494.4,1.3425]
[1750906737446,1.318,2495.1,2494.4,1.3425]
[1750906737748,0.80127,2494.7,2494.4,1.3425]
[1750906738245,1.318,2495.1,2494.0,3.2078]
[1750906738246,4.5258,2495.1,2494.0,3.2078]
[1750906738550,3.2078,2494.7,2494.1,1.3706]
[1750906738742,15.5788,2494.7,2494.1,1.3706]
[1750906738947,40.8,2494.6,2494.1,1.3706]
[1750906739345,0.80142,2494.3,2494.1,1.3706]
[1750906739648,0.80138,2494.4,2494.1,1.3706]
[1750906740244,0.80145,2494.2,2494.0,3.2078]
[1750906740446,0.80146,2494.1,2494.0,3.2078]
[1750906740644,0.80146,2494.1,2493.6,3.2078]
[1750906740645,0.80159,2493.7,2493.6,3.2078]
[1750906742854,0.80166,2493.5,2493.2,4.5784]
[1750906743051,0.80166,2493.6,2493.3,1.3888]
[1750906743350,0.80166,2493.5,2493.3,1.3888]
[1750906743546,0.80164,2493.6,2493.3,1.3888]
[1750906744647,0.80166,2493.5,2493.3,1.3888]
[1750906745150,0.80167,2493.5,2493.3,1.3888]
[1750906745339,3.2078,2493.9,2493.3,1.3888]
[1750906745542,0.80168,2493.5,2493.3,1.3888]
[1750906745738,0.80161,2493.7,2493.3,1.3888]
[1750906745949,3.2078,2493.9,2493.3,1.3888]
[1750906746545,0.80162,2493.7,2493.3,1.3888]
[1750906746746,3.2078,2493.9,2493.3,1.3888]
[1750906746945,0.80164,2493.6,2493.3,1.3888]
[1750906747143,0.80167,2493.5,2493.3,1.3888]
[1750906747353,1.424,2493.8,2493.2,3.2078]
[1750906747554,0.80167,2493.5,2493.2,3.2078]
[1750906747750,0.80171,2493.4,2493.2,3.2078]
[1750906747947,1.424,2493.8,2493.2,3.2078]
[1750906748446,0.80171,2493.4,2493.2,3.2078]
[1750906748646,1.424,2493.8,2493.2,3.2078]
[1750906748843,0.80167,2493.5,2493.2,3.2078]
[1750906749042,1.424,2493.8,2493.3,1.3883]
[1750906749245,0.80163,2493.6,2493.3,1.3883]
[1750906749854,0.80166,2493.5,2493.3,1.3883]
[1750906750353,0.80164,2493.6,2493.3,1.3883]
[1750906750552,0.80166,2493.5,2493.3,1.3883]
[1750906750850,0.8016,2493.7,2493.3,7.03854095]
[1750906751048,0.80159,2493.7,2493.6,3.2078]
[1750906752047,0.80179,2493.1,2493.0,1.3325]
[1750906752247,0.80182,2493.0,2492.9,3.2078]
[1750906752446,12.218,2493.4,2492.9,3.2078]
[1750906752642,41.60175,2493.3,2492.9,3.2078]
[1750906752846,0.80182,2493.0,2492.9,3.2078]
[1750906754549,0.80193,2492.7,2492.6,3.2078]
[1750906754749,12.218,2492.8,2492.2,3.2078]
[1750906755150,0.80203,2492.4,2492.2,3.2078]
[1750906755357,0.80204,2492.3,2492.2,3.2078]
[1750906755652,0.80195,2492.6,2492.2,3.2078]
[1750906755952,0.80198,2492.5,2492.3,1.3531]
[1750906756154,40.8,2493.0,2492.4,5.65024095]
[1750906756457,0.80188,2492.8,2492.7,3.2078]
[1750906756645,0.80187,2492.9,2492.7,3.2078]
[1750906756849,0.80187,2492.9,2492.8,1.4161]
[1750906757857,3.2078,2493.2,2492.8,1.4161]
[1750906758160,0.80185,2492.9,2492.8,1.4161]
[1750906758355,3.2078,2493.2,2492.8,6.60560403]
[1750906758558,0.80169,2493.4,2493.1,3.2078]
[1750906758749,0.80168,2493.5,2493.2,1.4161]
[1750906758950,5.18950403,2494.5,2493.2,1.4161]
[1750906758951,3.2078,2494.3,2493.4,8.39730403]
[1750906759152,0.80145,2494.2,2493.9,3.2078]
[1750906759350,0.80141,2494.3,2493.9,3.2078]
[1750906759653,4.00918,2494.4,2493.9,8.39730403]
[1750906759954,0.80141,2494.3,2493.9,3.2078]
[1750906760157,0.80141,2494.3,2494.0,1.4033]
[1750906760357,16.788,2494.7,2494.0,1.4033]
[1750906760555,0.80137,2494.4,2494.0,1.4033]
[1750906760758,0.80135,2494.5,2494.0,1.4033]
[1750906760958,0.80137,2494.4,2494.0,1.4033]
[1750906761161,12.221,2494.7,2494.2,3.2078]
[1750906761356,0.8013,2494.7,2494.3,1.4033]
[1750906761562,12.219,2495.3,2494.6,3.2078]
[1750906761755,0.80127,2494.7,2494.6,3.2078]
[1750906761955,3.2078,2494.8,2494.2,3.2078]
[1750906762357,0.80131,2494.6,2494.2,3.2078]
[1750906762754,0.80129,2494.7,2494.2,3.2078]
[1750906763161,0.80131,2494.6,2494.3,1.3046]
[1750906763557,3.2078,2494.8,2494.3,1.3046]
[1750906764052,0.80135,2494.5,2494.2,3.2078]
[1750906764254,0.80137,2494.4,2494.2,3.2078]
[1750906764659,1.3809,2494.7,2494.2,3.2078]
[1750906764864,0.8014,2494.3,2494.2,3.2078]
[1750906765069,0.80138,2494.4,2494.2,3.2078]
[1750906765365,0.80144,2494.2,2493.8,3.2078]
[1750906765663,3.2078,2494.5,2493.8,3.2078]
[1750906765973,1.3127,2494.4,2493.8,3.2078]
[1750906766162,0.80163,2493.6,2493.5,3.2078]
[1750906766465,3.2078,2493.7,2493.2,3.2078]
[1750906766860,0.80172,2493.3,2493.2,3.2078]
[1750906769363,0.80185,2492.9,2492.8,3.2078]
[1750906769558,0.80185,2493.0,2492.8,3.2078]
[1750906769758,0.80185,2492.9,2492.8,3.2078]
[1750906771860,0.80198,2492.6,2492.4,3.2078]
[1750906772167,0.80198,2492.5,2492.4,3.2078]
[1750906772371,0.80208,2492.2,2492.1,3.2078]
[1750906773369,2.00516,2492.3,2491.5,3.2078]
[1750906773567,3.2078,2492.0,2491.5,3.2078]
[1750906773871,0.80227,2491.6,2491.5,3.2078]
[1750906774363,3.2078,2492.0,2491.5,8.2078]
[1750906774671,0.80222,2491.8,2491.6,1.3353]
[1750906774862,0.80224,2491.7,2491.6,1.3353]
[1750906775661,3.2078,2492.1,2491.6,6.3353]
[1750906775859,12.002,2492.3,2491.8,3.2078]
[1750906776056,3.2078,2492.4,2491.9,1.3036]
[1750906776258,0.80206,2492.3,2491.9,1.3036]
[1750906776458,3.2078,2492.6,2492.1,3.2078]
[1750906776765,46.203,2493.0,2492.4,3.2078]
[1750906776971,40.8,2492.9,2492.5,1.3036]
[1750906777160,0.80198,2492.5,2492.1,3.2078]
[1750906777463,0.80198,2492.5,2492.1,4.5114]